Cogmind - Beta 16.1 @@@ ROGUE MODE // 2026.03.04 @ 18:34:13 Player: Endlessblaze Result: Destroyed by D-53 Grenadier with Mini Grenade Launcher Performance ------------- Evolutions (0) 0 Regions Visited (2) 400 Robots Destroyed (7) 35 Value Destroyed (183) 183 Prototype IDs (0) 0 Alien Tech Used (0) 0 Bonus (-20) -20 TOTAL SCORE: 598 Bonus ------- Friendly Fire -20 Cogmind --------- Core Integrity 0/250 Matter 290/300 Energy 125/125 System Corruption 0% Temperature Cool (0) Movement Walking (120) Location -10/Mines Parts ------- > --- POWER (1) -------- Light Ion Engine > --- PROPULSION (2) --- Aluminum Leg Aluminum Leg > --- UTILITY (2) ------ Improved Heat Sink Signal Interpreter > --- WEAPON (2) ------- Small Laser Small Laser > --- INVENTORY (5) ---- Medium Matter Pod (100) Grenade Launcher Makeshift Hammer Shock Trap Peak State ------------ > --- POWER ------------ Light Ion Engine > --- PROPULSION ------- Aluminum Leg Aluminum Leg > --- UTILITY ---------- Improved Terrain Scanner Seismic Detector > --- WEAPON ----------- Light Assault Rifle Light Assault Rifle > --- INVENTORY -------- (None) [Rating: 9] Favorites ----------- Power Light Ion Engine Engine Light Ion Engine Propulsion Aluminum Leg Leg Aluminum Leg Utility Improved Heat Sink Device Improved Heat Sink Processor Signal Interpreter Weapon Small Laser Energy Gun Small Laser Ballistic Gun Light Assault Rifle Build | -11 -10 -10 ------- Run | Yrd Mat Min Slots Evolved . | . . . Power . | . . . Propulsion . | . . . Utility . | . . . Weapon . | . . . Parts Attached 14 | 5 2 7 Power 2 | 1 . 1 Engine 2 | 1 . 1 Core . | . . . Reactor . | . . . Propulsion 4 | 2 . 2 Treads . | . . . Leg 4 | 2 . 2 Wheel . | . . . Hover . | . . . Flight . | . . . Utility 4 | . 2 2 Device 3 | . 2 1 Storage . | . . . Processor 1 | . . 1 Hackware . | . . . Protection . | . . . Artifact . | . . . Weapon 4 | 2 . 2 Energy Gun 2 | . . 2 Energy Cannon . | . . . Ballistic Gun 2 | 2 . . Ballistic Cannon . | . . . Launcher . | . . . Special Weapon . | . . . Impact Weapon . | . . . Slashing Weapon . | . . . Piercing Weapon . | . . . Special Melee Weapon . | . . . Unidentified Prototypes . | . . . Parts Lost 6 | . . 6 Power 1 | . . 1 Propulsion 1 | . . 1 Utility 2 | . . 2 Weapon 2 | . . 2 Highest Loss Streak 6 | . . 6 To Critical Strikes . | . . . Average Backups 2 | . 1 2 Power . | . . . Propulsion . | . . . Utility 1 | . . 1 Weapon . | . . 1 Tool/Special . | . . . Unused Backups 2 | . . 2 Power . | . . . Propulsion . | . . . Utility 1 | . . 1 Weapon 1 | . . 1 Tool/Special . | . . . Average Slot Usage (%) 93 | . 98 92 Engine 12 | . 14 12 Leg 27 | . 28 27 Device 16 | . 26 13 Processor 7 | . . 9 Energy Gun 19 | . . 24 Ballistic Gun 7 | . 28 3 Peak Build Rating 9 | 5 9 9 Average Rating 7 | 4 8 8 On Entrance 4 | . 5 9 Avg Prop Armor Cover (%) 24 | 30 . 23 Naked Turns . | . . . Heaviest Build 7 | 5 7 7 Greatest Support 20 | 20 20 20 Greatest Overweight (x) . | . . . Average Overweight (x) . | . . . Largest Inventory Capacity 5 | 5 5 5 Average Capacity 5 | 5 5 5 Most Carried 5 | 2 3 5 Average Carried 3 | . 1 4 Final Capacity 5 | 5 5 5 Final Carried 4 | 2 3 4 Class Distribution -------------------- 64% | Scavenger-Mutant 35% | Mutant Dominant Class ---------------- Mutant | -10/Materials Scavenger-Mutant | -10/Mines Resources | -11 -10 -10 ----------- Run | Yrd Mat Min Matter Collected 439 | 258 . 181 Remotely . | . . . Salvage Created 270 | 67 . 203 Parts 15 | 8 . 7 Haulers Intercepted . | . . . Recyclers Shooed . | . . . Parts Field Recycled . | . . . Retrieved Matter . | . . . Parts Self-Destructed . | . . . Prevented . | . . . Parts Restored . | . . . Kills | -11 -10 -10 ------- Run | Yrd Mat Min Combat Hostiles Destroyed 4 | . . 4 Guns 4 | . . 4 Classes Destroyed 2 | 1 . 1 Tunneler 3 | 3 . . Grunt 4 | . . 4 Best Kill Streak 4 | 3 . 4 Combat Bots Only 4 | . . 4 Max Kills in Single Turn 1 | 1 . 1 Gunslinging . | . . . Exploded . | . . . Melee . | . . . Uniques/NPCs Destroyed . | . . . Combat | -11 -10 -10 -------- Run | Yrd Mat Min Hostile Shots Fired 69 | . 3 66 Missed 23 | . 1 22 Hits 46 | . 2 44 Projectile 46 | . 2 44 AOE 3 | . . 3 Damage Taken 745 | . 55 690 Core 258 | . 17 241 Absorbed by Shields . | . . . Core Remaining (%) 100 | 100 . . Volleys Fired 24 | 4 . 20 Largest 2 | 2 . 2 Hottest 80 | 40 . 80 Shots Fired 44 | 8 . 36 Gun 44 | 8 . 36 Cannon . | . . . Launcher . | . . . Special . | . . . Kinetic 39 | 8 . 31 Thermal 5 | . . 5 Explosive . | . . . Electromagnetic . | . . . Robot Hit Streak 9 | 4 . 9 Robot Miss Streak 3 | 1 . 3 Penetration Max . | . . . Secondary Targets 2 | . . 2 Max Gunslinging Chain 1 | . . 1 Shots Hit Robots 33 | 6 . 27 Core Hits 15 | 4 . 11 Critical Kills . | . . . Critical Parts Destroyed . | . . . Critical Strikes . | . . . Melee Attacks . | . . . Impact . | . . . Slashing . | . . . Piercing . | . . . Sneak Attacks . | . . . Combat Hostiles . | . . . Follow-up Attacks . | . . . Damage Inflicted 286 | 49 . 237 Guns 286 | 49 . 237 Cannons . | . . . Explosions . | . . . Melee . | . . . Ramming . | . . . Kinetic 252 | 49 . 203 Thermal 34 | . . 34 Explosive . | . . . Electromagnetic . | . . . Impact . | . . . Slashing . | . . . Piercing . | . . . Highest Corruption . | . . . Average Corruption . | . . . Corruption Purged . | . . . Corruption Blocked . | . . . Overload Shots . | . . . Overflow Damage . | . . . Projectiles . | . . . Explosions . | . . . Melee . | . . . Knockbacks . | . . . Impact . | . . . Kinetic . | . . . Secondary . | . . . Self-Inflicted Damage . | . . . Shots . | . . . Rammed . | . . . Targets Rammed . | . . . Kicked . | . . . Crushed . | . . . Highest Temperature 40 | . . 40 Average Temperature 11 | . . 11 Received Heat Transfer 336 | . 18 318 Siege Activations . | . . . Martial Activations . | . . . Shielding Activations . | . . . Robots Disrupted . | . . . Combat Hostiles . | . . . Robots Corrupted . | . . . Combat Hostiles . | . . . Parts Fried . | . . . Impact Corruptions . | . . . Robots Melted . | . . . Combat Hostiles . | . . . Parts Melted 1 | . . 1 Heat Transferred 75 | . . 75 Parts Sabotaged . | . . . Parts Stolen . | . . . Parts Stripped . | . . . Power Chain Reactions . | . . . Alert | -11 -10 -10 ------- Run | Yrd Mat Min Maximum Alert Level . | . . . Low Security (%) 100 | 100 100 100 Level 1 . | . . . Level 2 . | . . . Level 3 . | . . . Level 4 . | . . . Level 5 . | . . . High Security . | . . . Max Security . | . . . Peak Influence 30 | 10 . 30 Initial . | . . . Average 2 | 1 . 3 Influence Increases 145 | 15 5 125 Destroy 0b10 Robot/C 80 | . . 80 Destroy 0b10 Robot/NC 15 | 15 . . Destroy Leader 20 | . . 20 Trap Triggered on 0b10 10 | . . 10 Successful Hack 5 | . 5 . Lose Combat Pursuer 15 | . . 15 Influence Decreases 128 | 15 5 108 Time Decay 78 | 15 5 58 Lost Part 50 | . . 50 Squads Dispatched 1 | . 1 . Investigation . | . . . Extermination . | . . . Reinforcement 1 | . 1 . Assault . | . . . Garrison . | . . . Intercept . | . . . Searches Triggered . | . . . Construction Impeded . | . . . Haulers Reinforced . | . . . Active Scanning Responses . | . . . Cargo Convoy Interrupts . | . . . Stealth | -11 -10 -10 --------- Run | Yrd Mat Min Distress Signals . | . . . Communications Jammed . | . . . Distress Signals . | . . . Times Spotted 15 | . 4 11 Peak Tracking Total 5 | . 4 5 Tactical Retreats 1 | . . 1 Traps | -11 -10 -10 ------- Run | Yrd Mat Min Traps Triggered 1 | . 1 . Indirectly . | . . . Trap Hack Attempts . | . . . Triggered . | . . . Disarmed . | . . . Reprogrammed . | . . . Reused 1 | . . 1 Traps Extracted . | . . . Installed 2 | . . 2 Triggered 1 | . . 1 Most Traps Carried 3 | . . 3 Machines | -11 -10 -10 ---------- Run | Yrd Mat Min Machines Disabled . | . . . Max in Single Turn . | . . . Machines Repaired . | . . . Machines Dismantled . | . . . Machines Sabotaged . | . . . Overloaded Fab Kills . | . . . Hacking | -11 -10 -10 --------- Run | Yrd Mat Min Machines Accessed 1 | . 1 . Terminals 1 | . 1 . Fabricators . | . . . Repair Stations . | . . . Recycling Units . | . . . Scanalyzers . | . . . Garrison Access . | . . . Total Hacks 4 | . 4 . Successful 4 | . 4 . Failed . | . . . Catastrophic . | . . . Database Lockouts . | . . . Manual 3 | . 3 . Terminals 4 | . 4 . Fabricators . | . . . Repair Stations . | . . . Recycling Units . | . . . Scanalyzers . | . . . Garrison Access . | . . . Terminal Hacks 1 | . 1 . Emergency Access Points 1 | . 1 . Fabricator Hacks . | . . . Repair Station Hacks . | . . . Recycling Unit Hacks . | . . . Scanalyzer . | . . . Garrison Access Hacks . | . . . Unauthorized Hacks 3 | . 3 . Terminals 3 | . 3 . Track 1 | . 1 . Assimilate 1 | . 1 . Botnet 1 | . 1 . Fabricators . | . . . Repair Stations . | . . . Recycling Units . | . . . Scanalyzers . | . . . Garrison Access . | . . . Data Cores Recovered . | . . . Used . | . . . Hacking Detections 1 | . 1 . Full Trace Events . | . . . Feedback Events . | . . . Feedback Blocked . | . . . Robot Schematics Acquired . | . . . Robots Built . | . . . Authchips . | . . . Time . | . . . Total Robot Build Rating . | . . . Part Schematics Acquired . | . . . Parts Built . | . . . Authchips . | . . . Time . | . . . Total Part Build Rating . | . . . Part Studies Acquired . | . . . Parts Repaired . | . . . Time . | . . . Parts Recycled . | . . . Recycled Matter . | . . . Retrieved Matter . | . . . Retrieved Components . | . . . Parts Scanalyzed . | . . . Part Schematics Acquired . | . . . Parts Damaged . | . . . Bothacking | -11 -10 -10 ------------ Run | Yrd Mat Min Used RIF Installer . | . . . Robots Hacked . | . . . Non-combat . | . . . Combat . | . . . Robot Hacks Applied . | . . . Relay Couplers Released . | . . . Fabnet Peak Effective % . | . . . Robots Rewired . | . . . Allies Hacked . | . . . Hacks Repelled . | . . . Allies | -11 -10 -10 -------- Run | Yrd Mat Min Total Allies 1 | . . 1 Largest Group 1 | . . 1 Highest-Rated Group 31 | . . 31 Highest-Rated Ally 31 | . . 31 Total Orders . | . . . Ally Attacks 3 | . . 3 Total Damage 43 | . . 43 Kills . | . . . Allies Corrupted . | . . . Allies Melted . | . . . Intel | -11 -10 -10 ------- Run | Yrd Mat Min Active Infowar (turns) 142 | . 113 29 Terrain 126 | . 113 13 Seismic 142 | . 113 29 Robot Analysis Total . | . . . Derelict Logs Recovered 2 | . . 2 Drone Launches . | . . . Drone Recoveries . | . . . Exploration | -11 -10 -10 ------------- Run | Yrd Mat Min Turns Passed 692 | 88 115 489 Spaces Moved 398 | 63 92 243 Core 44 | 9 . 35 Treads . | . . . Legs 354 | 54 92 208 Wheels . | . . . Hover . | . . . Flight . | . . . Fastest Speed 50 | 50 120 50 Average Speed 112 | 110 120 109 Slowest Speed 120 | 120 120 120 Overloaded Moves . | . . . Propulsion Burnouts . | . . . Robots Hopped . | . . . Potential Cave-ins . | . . . Cave-ins Triggered . | . . . Exploration Rate (%) 22 | 5 19 42 Regions Visited 2 Branch Regions 1 Pre-discovered Areas 1 | . . 1 Known Exits Taken . | . . . Unknown Exits Taken 2 | 1 1 . Scrap Searched 1 | . . 1 Spaces Dug . | . . . Terrain Destroyed . | . . . Melee . | . . . Projectile . | . . . AOE . | . . . Terrain Rammed . | . . . Walls Destroyed . | . . . Machines Disabled . | . . . Actions | -11 -10 -10 --------- Run | Yrd Mat Min Total 603 | 73 96 434 Wait 154 | . . 154 Move 396 | 62 91 243 Hop . | . . . Pick Up 10 | 2 3 5 Fast Attach 9 | 5 . 4 Attach 4 | . 2 2 Detach . | . . . Swap 1 | . . 1 Drop 3 | . . 3 Fire 24 | 4 . 20 Melee . | . . . Ram . | . . . Kick . | . . . Crush . | . . . Escape Stasis . | . . . Rewire . | . . . Trap 2 | . . 2 Miscellaneous . | . . . Route ------- -11/Scrapyard -10/Materials -10/Mines History --------- Turn | Location | Event 4 | -11/Scrapyard | Discovered new exit (range 15) 89 | -11/Scrapyard | Entered Materials 185 | -10/Materials | Discovered new exit (range 13) 204 | -10/Materials | Entered Mines 208 | -10/Mines | Learned location of 1 exit from Materials 234 | -10/Mines | Core integrity fell below 50% 252 | -10/Mines | Core integrity fell below 20% 257 | -10/Mines | Escorted by a lone wolf Derelict 277 | -10/Mines | Learned location of Storage (-7) 285 | -10/Mines | Lost 6 parts (1p1n2u2w) 339 | -10/Mines | Found a hidden stash of uninstalled traps 556 | -10/Mines | Build established: Scavenger-Mutant 622 | -10/Mines | Assembled infested the area 684 | -10/Mines | A weapon hastily lodged in a ceiling crevice suddenly fell to the ground 693 | -10/Mines | Destroyed by D-53 Grenadier with Mini Grenade Launcher Last Messages --------------- 00622_ ALERT: Infestation in the mines, dispatching Demolisher response squad. 00659_ Dropped Shock Trap. 00660_ Installed Shock Trap. 00661_ C-45 Heavy ARC bursts open, deploying its payload. 00661_ D-53 Grenadier unfolds itself. 00666_ 6A-LLA(g): "Mission, incomplete...*fzzt*" 00666_ 6A-LLA(g) destroyed. 00667_ Dropped Shock Trap. 00667_ Installed Shock Trap. 00681_ as-70138 destroyed. 00681_ D-53 Grenadier destroyed. 00683_ D-53 Grenadier system corrupted by crushing effect. 00683_ as-49268 destroyed. 00684_ A Mak. Hammer has been hastily shoved under some rubble with a note attached: "Who needs nails when you have Unaware?" 00686_ Acquired Mak. Hammer. Map ----- +----------------------------------------------------+ | | | ??????????????????????????????????????? | | ??????????????????????????????????????? | | ??????????????????????????????????????? | | ??????????????????????????????????????? | | ??????????????????????????????????????? | | ??????????????????????????????????????? | | ??????????????????????????????????????? | | ??????????????????????????????????????? | | ??????????????????????????????????????? | | ??????????????????????????????????????? | | ??????????????????????????????????????? | | ??????????????????????????????????????? | | ??????????????????????????????????????? | | ??????????????????????????????????????# | | ?????????????????????????????????????? | | ?????????????????????????????????????? | | ??????????????????????????????????????? | | ??????????????????????????????????????? | | ??????????????????????????????????????? | | ????????????????????????????????####??? | | ??????#######??????????????????## ###? | | ?????## #?????????????????## ## | | ?????# ######????????????# # | | ?????# # #???????????## | | ?????# @ ## #????????# | | ????## #????????# | | ???## ####?????????# | | ???# #????????????## ### | | ???# #?????????????####?## | | ???# ### #???????????????????## | | ???## #??## ???????????????????? | | ????####????##d ?????????????????? | | ????????????? # ######### | | ????????????? =% % "%" | | ????????????? * #### #### | | ????????????? # ??????????# #??? | | ????????????? # ???????????# #??? | | ????????????? # #???????????# #??? | | ?????????????### #?????????????# #??? | | ????????????????# ######???????### #### | | ????????????????# #???????# | | ????????????????# #### #???????# | | ????????????????# #????????????# """ "" | | ????????????????# #????????????# """ "" | | ????????????????# #????????????# """ "" | | ???????????????? ????????????# | | ???????????????? ????????????# """ "" | | ????????????????###????????????# """ "" | | ???????????????????????????????# """ "" | +----------------------------------------------------+ Best States ------------- Heat Dissipation 39 Energy Generation 10 Energy Capacity 125 Matter Stores 300 Matter Capacity 300 Sight Range 16 Terrain Scan Range 16 Terrain Scan Density 10 Evasion (%) 55 Item Schematics ----------------- None Robot Schematics ------------------ None Fabricated ------------ Nothing Repaired ---------- Nothing Studied --------- None Alien Tech Used ----------------- None Achievements -------------- None Challenges ------------ None Game ------ Seed AntisysAbsorptionScythe Manual? 0 Play Time 00:08:44 Cumulative 45.0 hours Start 2026.03.04 @ 18:28:42 End 2026.03.04 @ 18:34:13 Sessions 1 Manual Loads 0 Difficulty Rogue Special Mode None Game No. 64 Rogue 64 Adventurer 0 Explorer 0 Win Type - Total 0 Types 0/0/0/0/0/0/0/0/0/0 Lore% 41 Gallery% 31 Achievement% 22 Wizard Run 0 Options --------- Layout 1 ASCII 0 Keyboard 0 Movement Arrows Keybinds 0 Fullscreen 1 Font 16/SmallcapsGlow Map View 55x38 Zoom Use 0% Tactical HUD 1 Map Filters NONE Filters NONE Steam 1 RUN: f8b6313a-8cbe-44d5-ad66-5be0d2e1311e